fUST/lending_fUST_20241005
["ID","MTS","AMOUNT","RATE_DAILY","PERIOD"]
[339861365,1728082429136,-0.02103926,0.00021999,120]
[339861366,1728082473348,438.99,0.00021999,120]
[339861367,1728082520420,499.99,0.00021999,120]
[339861368,1728082521383,500.26644215,0.00021999,120]
[339861369,1728082567731,-157.0,0.00022,120]
[339861370,1728082567756,-121.87157778,0.00022,120]
[339861371,1728082567839,-157.0,0.00022,120]
[339861372,1728082567866,-200.0,0.00023,120]
[339861373,1728082567889,-4.10945,0.00023,120]
[339861374,1728082568133,-200.0,0.00023,120]
[339861375,1728082568221,-200.0,0.00023,120]
[339861376,1728082568297,-595.89055,0.00023,120]
[339861377,1728082568322,-172.434051,0.00023836,120]
[339861378,1728082568344,-200.0,0.00024,120]
[339861379,1728082568366,-204.10945,0.00024,120]
[339861380,1728082568389,-157.0,0.00024,120]
[339861381,1728082568414,-184.53595579,0.00025,120]
[339861382,1728082568493,-15.46404321,0.00025,120]
[339861383,1728082568517,-313.97000779,0.00025,120]
[339861384,1728082568542,-1000.0,0.00025,120]
[339861385,1728082568569,-269.39788028,0.00026,120]
[339861386,1728082568657,-52.60211972,0.00026,120]
[339861387,1728082568684,-200.0,0.00027,120]
[339861388,1728082568705,-398.83193128,0.00027,120]
[339861389,1728082568727,-31.38298315,0.00027,120]
[339861390,1728082641775,-200.0,0.00027,120]
[339861391,1728082642072,-768.61701685,0.00027,120]
[339861392,1728082642104,-200.0,0.000274,120]
[339861393,1728082642129,-200.0,0.000278,120]
[339861394,1728082642154,-31.38298315,0.00028,120]
[339861395,1728082642241,-200.0,0.00028,120]
[339861396,1728082642488,-268.61701685,0.00028,120]
[339861397,1728082642511,-359.2417263,0.00028,120]
[339861398,1728082642615,-281.11424,0.00028,120]
[339861399,1728082642872,-360.6540337,0.00028,120]
[339861400,1728082642895,-157.0,0.00028,120]
[339861401,1728082642918,-200.0,0.000282,120]
[339861402,1728082642941,-200.0,0.000286,120]
[339861403,1728082642962,-82.3459663,0.0002895,120]
[339861404,1728082667174,896.02738767,0.00028,120]
[339861406,1728082699763,155.0,0.00028,120]
[339861407,1728082704293,106.98261233,0.00028,120]
[339861408,1728082712306,155.0,0.000278,120]
[339861409,1728082716982,45.0,0.000278,120]
[339861410,1728082720874,155.0,0.000274,120]
[339861411,1728082725414,45.0,0.000274,120]
[339861412,1728082751927,306.0,0.00027,120]
[339861413,1728082778198,-172.434051,0.00023836,95]
[339861414,1728082778222,-172.434051,0.00023836,101]
[339861415,1728082778248,-86.131898,0.00023836,107]
[339861416,1728082784254,-86.302153,0.00023836,107]
[339861417,1728082784277,-172.434051,0.00023836,113]
[339861418,1728082791736,155.0,0.00026849,90]
[339861419,1728082796259,17.263796,0.00026849,90]
[339861420,1728082796283,224.22127677,0.00026849,90]
[339861421,1728082870603,-110.0,0.000274,120]
[339861422,1728082870627,-93.01738767,0.000278,120]
[339861423,1728082870711,-16.98261233,0.000278,120]
[339861424,1728082870735,-48.01738767,0.00028,120]
[339861425,1728082870757,-155.0,0.00028,120]
[339861426,1728082870785,-45.98261233,0.0002895,120]
[339861427,1728082896267,-871.67142137,0.0002895,120]
[339861428,1728082981211,-200.0,0.00029,120]
[339861429,1728082981235,-238.11424,0.00029,120]
[339861430,1728082981514,-761.88576,0.00029,120]
[339861431,1728082981538,-239.12424,0.000294,120]
[339861432,1728082981625,-41.99,0.000294,120]
[339861433,1728082981649,-157.0,0.000294,120]
[339861434,1728082981672,-301.01,0.0002985,120]
[339861435,1728082981797,-20969.47180393,0.00021,60]
[339861436,1728082981890,-698.99,0.0002985,120]
[339861437,1728082981917,-365.00622676,0.0002988,120]
[339861438,1728082982020,-172.434051,0.00023836,64]
[339861439,1728082982043,-172.434051,0.00023836,70]
[339861440,1728082982072,-55.131898,0.00023836,76]
[339861441,1728082982172,-117.302153,0.00023836,76]
[339861442,1728082982195,-172.434051,0.00023836,82]
[339861443,1728082982218,-172.434051,0.00023836,88]
[339861444,1728082982245,-7.52040309,0.00025,60]
[339861445,1728082982346,-356.59377324,0.0002988,120]
[339861446,1728082982437,-400.0,0.00025,60]
[339861447,1728082982603,-762.51,0.0003,120]
[339861448,1728082982687,-62.170255,0.00025,60]
[339861449,1728082982714,-337.829745,0.00026849,90]
[339861450,1728082982820,-93.170255,0.00026849,90]
[339861451,1728082982850,-149.43681622,0.00027397,60]
[339861452,1728083057714,172.434051,0.00023836,93]
[339861453,1728083057928,34.34467223,0.00023836,106]
[339861454,1728083057954,138.08937877,0.00023836,106]
[339861455,1728083059009,172.434051,0.00023836,119]
[339861456,1728083062690,-155.04,0.000203,31]
[339861457,1728083062717,-155.04,0.000203,31]
[339861458,1728083062744,-155.04,0.000203,31]
[339861459,1728083062776,-155.04,0.000203,31]
[339861460,1728083062803,-79.84,0.000203,31]
[339861561,1728083432897,-160.1169225,0.00016438,2]
[339861562,1728083432907,-154.56806207,0.00016621,2]
[339861563,1728083432917,-154.56806207,0.00016622,2]
[339861564,1728083432927,-300.0,0.00016721,2]
[339861565,1728083432937,-5478.21496902,0.00016722,2]
[339861566,1728083432950,-2748.51597774,0.00016722,2]
[339861567,1728083432963,-500.0,0.00016722,2]
[339861580,1728083437703,-1210.00000001,0.00016722,2]
[339861582,1728083437827,-2116.14531724,0.00016722,2]
[339861589,1728083439791,-1014.07585709,0.00016722,2]
[339861590,1728083439801,-667.127018,0.00017005,2]
[339861591,1728083439810,-3574.97766107,0.00017263,2]
[339861592,1728083439819,-667.127018,0.00017505,2]
[339861593,1728083439829,-5414.53655838,0.000177,2]
[339861594,1728083439838,-729.70340038,0.00017721,2]
[339861595,1728083439847,-177.533,0.000178,2]
[339861596,1728083439857,-153.0,0.000178,2]
[339861597,1728083439866,-153.0,0.000178,2]
[339861598,1728083439875,-994.87425007,0.000178,2]
[339861599,1728083439885,-152.90393902,0.0001786,2]
[339861600,1728083439894,-18235.66025122,0.0001786,2]
[339861601,1728083439904,-14226.20946977,0.0001786,2]
[339861602,1728083439913,-9545.29807563,0.0001786,2]
[339861603,1728083439926,-5133.86071987,0.0001786,2]
[339861604,1728083439935,-5341.64356896,0.0001786,2]
[339861605,1728083439944,-3669.78969888,0.00017879,2]
[339861606,1728083439953,-1335.41089224,0.00017879,2]
[339861607,1728083439963,-150.01,0.00017899,2]
[339861608,1728083439973,-3693.47577357,0.00017899,2]
[339861609,1728083439983,-150.112233,0.000179,2]
[339861610,1728083439994,-150.112233,0.000179,2]
[339861611,1728083440004,-150.112233,0.000179,2]
[339861612,1728083440014,-287.692551,0.000179,2]
[339861613,1728083440023,-153.0,0.000179,2]
[339861614,1728083440032,-150.0,0.000179,2]
[339861615,1728083440042,-421.100385,0.000179,2]
[339861616,1728083440051,-421.100385,0.000179,2]
[339861617,1728083440061,-151.0,0.000179,2]
[339861618,1728083440070,-151.0,0.000179,2]
[339861619,1728083440081,-569.987409,0.000179,2]
[339861620,1728083440090,-569.987409,0.000179,2]
[339861621,1728083440099,-635.931049,0.000179,2]
[339861622,1728083440108,-635.931049,0.000179,2]
[339861623,1728083440117,-151.0,0.000179,2]
[339861624,1728083440127,-151.0,0.000179,2]
[339861625,1728083440140,-2325.958573,0.000179,2]
[339861626,1728083440154,-2325.958573,0.000179,2]
[339861627,1728083440163,-855.041847,0.000179,2]
[339861628,1728083440173,-855.041847,0.000179,2]
[339861629,1728083440183,-151.0,0.000179,2]
[339861630,1728083440193,-163.31809,0.000179,2]
[339861631,1728083440202,-163.31809,0.000179,2]
[339861632,1728083440212,-201.9069,0.000179,2]
[339861633,1728083440221,-151.0,0.000179,2]
[339861634,1728083440231,-201.9069,0.000179,2]
[339861635,1728083440242,-240.04013,0.000179,2]
[339861636,1728083440252,-151.0,0.000179,2]
[339861637,1728083440262,-277.286431,0.000179,2]
[339861638,1728083440273,-277.286431,0.000179,2]
[339861639,1728083440283,-413.428495,0.000179,2]
[339861640,1728083440293,-413.428495,0.000179,2]
[339861641,1728083440303,-151.0,0.000179,2]
[339861642,1728083440313,-1569.59161,0.000179,2]
[339861643,1728083440323,-1569.59161,0.000179,2]
[339861644,1728083440333,-327.463154,0.000179,2]
[339861645,1728083440342,-327.463154,0.000179,2]
[339861646,1728083440352,-151.0,0.000179,2]
[339861647,1728083440363,-2660.04464,0.000179,2]
[339861648,1728083440373,-151.0,0.000179,2]
[339861649,1728083440384,-2660.04464,0.000179,2]
[339861650,1728083440394,-3669.78969888,0.0001799,2]
[339861651,1728083440404,-1335.41089224,0.0001799,2]
[339861652,1728083440414,-2769.13294406,0.00018,10]
[339861653,1728083440424,-153.0,0.00018,2]
[339861654,1728083440433,-153.0,0.00018,2]
[339861655,1728083440443,-1052.36561243,0.00018,2]
[339861656,1728083440453,-667.127018,0.00018005,2]
[339861657,1728083440463,-153.633273,0.000181,2]
[339861658,1728083440474,-153.0,0.000181,2]
[339861659,1728083440484,-153.0,0.000181,2]
[339861660,1728083440495,-153.0,0.000181,2]
[339861661,1728083440504,-153.0,0.000181,2]
[339861662,1728083440514,-420.0,0.00018268,2]
[339861663,1728083440523,-153.0,0.00018274,2]
[339861664,1728083440533,-667.127018,0.00018505,2]
[339861665,1728083440543,-151.0,0.00018795,2]
[339861666,1728083440553,-151.0,0.00018904,2]
[339861667,1728083440563,-151.0,0.00018904,2]
[339861668,1728083440573,-151.0,0.00018904,2]
[339861669,1728083440583,-151.0,0.00018904,2]
[339861670,1728083440594,-1000.0,0.00018904,14]
[339861671,1728083440609,-5000.0,0.00018904,2]
[339861672,1728083440818,-167.601338,0.00018904,2]
[339861673,1728083440844,-667.127018,0.00019005,2]
[339861674,1728083440854,-151.0,0.00019068,2]
[339861675,1728083440863,-253.33884,0.00019068,2]
[339861676,1728083440873,-3669.78969888,0.00019158,3]
[339861677,1728083440883,-1335.41089224,0.00019158,3]
[339861678,1728083440893,-192.27160727,0.00019167,2]
[339861679,1728083440903,-567.82218266,0.00019167,2]
[339861680,1728083440913,-421.100385,0.00019168,2]
[339861681,1728083440922,-421.100385,0.00019168,2]
[339861682,1728083440932,-151.0,0.00019168,2]
[339861683,1728083440942,-151.0,0.00019168,2]
[339861684,1728083440952,-569.987409,0.00019168,2]
[339861685,1728083440962,-569.987409,0.00019168,2]
[339861686,1728083440972,-635.931049,0.00019168,2]
[339861687,1728083440981,-635.931049,0.00019168,2]
[339861688,1728083440991,-151.0,0.00019168,2]
[339861689,1728083441000,-242.186515,0.00019168,2]
[339861690,1728083441010,-2325.958573,0.00019168,2]
[339861691,1728083441020,-2325.958573,0.00019168,2]
[339861692,1728083441030,-855.041847,0.00019168,2]
[339861693,1728083441040,-855.041847,0.00019168,2]
[339861694,1728083441049,-160.536182,0.00019168,2]
[339861695,1728083441059,-163.31809,0.00019168,2]
[339861696,1728083441069,-163.31809,0.00019168,2]
[339861697,1728083441079,-201.9069,0.00019168,2]
[339861698,1728083441089,-201.9069,0.00019168,2]
[339861699,1728083441099,-151.0,0.00019168,2]
[339861700,1728083441109,-159.947438,0.00019168,2]
[339861701,1728083441118,-277.286431,0.00019168,2]
[339861702,1728083441129,-277.286431,0.00019168,2]
[339861703,1728083441139,-413.428495,0.00019168,2]
[339861704,1728083441152,-413.428495,0.00019168,2]
[339861705,1728083441162,-151.580838,0.00019168,2]
[339861706,1728083441173,-1569.59161,0.00019168,2]
[339861707,1728083441183,-1569.59161,0.00019168,2]
[339861708,1728083441193,-327.463154,0.00019168,2]
[339861709,1728083441203,-327.463154,0.00019168,2]
[339861710,1728083441212,-151.0,0.00019168,2]
[339861711,1728083441224,-2660.04464,0.00019168,2]
[339861712,1728083441234,-151.0,0.00019168,2]
[339861713,1728083441245,-2660.04464,0.00019168,2]
[339861714,1728083441255,-151.0,0.00019168,2]
[339861715,1728083441265,-187.534772,0.00019168,2]
[339861716,1728083441275,-151.0,0.00019168,2]
[339861717,1728083441285,-151.0,0.00019168,2]
[339861718,1728083441294,-1410.292408,0.00019168,2]
[339861719,1728083441304,-1410.292408,0.00019168,2]
[339861720,1728083441314,-1410.292408,0.00019168,2]
[339861721,1728083441324,-1410.292408,0.00019168,2]
[339861722,1728083441333,-151.0,0.00019168,2]
[339861723,1728083441342,-151.0,0.00019168,2]
[339861724,1728083441352,-300.652861,0.00019168,2]
[339861725,1728083441362,-300.652861,0.00019168,2]
[339861726,1728083441371,-300.652861,0.00019168,2]
[339861727,1728083441382,-300.652861,0.00019168,2]
[339861728,1728083441392,-151.0,0.00019178,2]
[339861729,1728083441402,-151.0,0.00019178,2]
[339861730,1728083441412,-500.0,0.00019178,2]
[339861731,1728083441422,-1000.0,0.00019178,16]
[339861732,1728083441431,-277.057353,0.00019178,2]
[339861733,1728083441443,-151.0,0.00019205,2]
[339861734,1728083441455,-500.0,0.00019377,2]
[339861735,1728083441467,-152.86828932,0.00019416,2]
[339861736,1728083441478,-5414.53655836,0.00019443,2]
[339861737,1728083441490,-151.0,0.000195,2]
[339861738,1728083441503,-151.0,0.000195,2]
[339861739,1728083441512,-151.0,0.000195,2]
[339861740,1728083441523,-251.138205,0.000195,2]
[339861741,1728083441533,-251.138205,0.000195,2]
[339861742,1728083441543,-151.0,0.000195,2]
[339861743,1728083441553,-151.0,0.000195,2]
[339861744,1728083441562,-1569.59161,0.000195,2]
[339861745,1728083441572,-1569.59161,0.000195,2]
[339861746,1728083441582,-327.463154,0.000195,2]
[339861747,1728083441591,-327.463154,0.000195,2]
[339861748,1728083441602,-151.0,0.000195,2]
[339861749,1728083441612,-2660.04464,0.000195,2]
[339861750,1728083441622,-151.0,0.000195,2]
[339861751,1728083441632,-2660.04464,0.000195,2]
[339861752,1728083441642,-1000.0,0.00019514,2]
[339861753,1728083441652,-503.17545491,0.00019651,2]
[339861754,1728083441665,-795.57303996,0.000199,2]
[339861755,1728083441674,-587.0,0.00019958,2]
[339861756,1728083441684,-500.0,0.00019973,2]
[339861757,1728083441694,-628.81185593,0.00019973,2]
[339861758,1728083441704,-500.0,0.00019973,2]
[339861759,1728083441714,-500.0,0.00019973,2]
[339861760,1728083441724,-151.0,0.00019973,2]
[339861761,1728083441734,-151.0,0.00019973,2]
[339861762,1728083441745,-165.096993,0.00019973,2]
[339861763,1728083441755,-165.096993,0.00019973,2]
[339861764,1728083441765,-273.81692,0.00019973,2]
[339861765,1728083441775,-273.81692,0.00019973,2]
[339861766,1728083441786,-247.524943,0.00019973,2]
[339861767,1728083441798,-247.524943,0.00019973,2]
[339861768,1728083441808,-18348.9484944,0.0001999,3]
[339861769,1728083441819,-6677.0544612,0.0001999,3]
[339861770,1728083441830,-151.0,0.0001999,2]
[339861771,1728083441843,-151.0,0.0001999,2]
[339861772,1728083441853,-6572.46027053,0.0002,2]
[339861786,1728083443089,-933.4792192,0.000195,2]
[339861804,1728083445889,-256.2038968,0.000195,2]
[339861805,1728083445901,-405.54675459,0.000199,2]
[339861806,1728083445912,-360.37486499,0.0002,2]
[339861807,1728083445926,-953.012298,0.0002,2]
[339861808,1728083445939,-309.30294729,0.0002,2]
[339861809,1728083446181,-13021.18620478,0.0002,2]
[339861810,1728083446191,-3238.73942008,0.0002,30]
[339861813,1728083747823,365.00622676,0.00029,120]
[339861814,1728083747848,334.99377324,0.00029,120]
[339861815,1728083810066,500.0,0.00029,120]
[339861816,1728083826541,165.00622676,0.00029,120]
[339861817,1728083826564,334.99377324,0.00029,120]
[339861818,1728083849073,500.0,0.00029,120]
[339861819,1728083875074,333.17,0.00029,120]
[339861820,1728084130296,120.47657023,0.00023836,100]
[339861821,1728084130317,51.95748077,0.00023836,100]
[339861822,1728084130498,31.83622676,0.00023836,120]
[339861823,1728084130520,140.59782424,0.00023836,120]
[339861824,1728084550319,150.0,0.00023836,120]
[339861951,1728084640142,-150.0,0.000179,2]
[339861952,1728084640154,-167.385969,0.00018757,2]
[339861953,1728084640164,-167.601338,0.00018904,2]
[339861954,1728084640173,-2945.44814029,0.00019,2]
[339861955,1728084640193,-2054.55185971,0.00019,2]
[339861956,1728084640202,-500.0,0.00019178,2]
[339861957,1728084640212,-152.86828932,0.00019416,2]
[339861958,1728084640221,-359.4222438,0.000195,2]
[339861959,1728084640230,-167.385969,0.00019735,2]
[339861960,1728084640240,-306.0,0.00019863,2]
[339861961,1728084640250,-4060.90241877,0.0001989,2]
[339861962,1728084640259,-991.919556,0.00019916,2]
[339861963,1728084640271,-177.533,0.00019962,2]
[339861964,1728084640282,-300.0,0.00019972,2]
[339861965,1728084640292,-500.0,0.00019973,2]
[339861966,1728084640302,-629.70419324,0.00019973,2]
[339861967,1728084640312,-500.0,0.00019973,2]
[339861968,1728084640323,-500.0,0.00019973,2]
[339861969,1728084640334,-500.0,0.00019973,2]
[339861970,1728084640345,-500.0,0.00019973,2]
[339861971,1728084640355,-500.0,0.00019973,2]
[339861972,1728084640366,-500.0,0.00019973,2]
[339861973,1728084640375,-500.0,0.00019973,2]
[339861974,1728084640387,-197.9503916,0.00019973,2]
[339861975,1728084640398,-500.0,0.00019973,2]
[339861976,1728084640408,-500.0,0.00019973,2]
[339861977,1728084640418,-500.0,0.00019973,2]
[339861978,1728084640428,-5440.94215219,0.0001998,3]
[339861981,1728084643243,-1097.72049323,0.0001998,3]
[339862007,1728084646098,-4237.62309408,0.0001998,3]
[339862008,1728084646111,-1068.32871376,0.0001998,3]
[339862009,1728084646122,-163.09753495,0.0001999,2]
[339862010,1728084646136,-26940.7143488,0.0001999,3]
[339862011,1728084646146,-2670.8217844,0.0001999,3]
[339862012,1728084646156,-3693.47577357,0.00019999,2]
[339862013,1728084646179,-397.47552786,0.00019999,2]
[339862014,1728084646191,-14204.98979504,0.0002,2]
[339862015,1728084646207,-11075.88735302,0.0002,2]
[339862016,1728084646218,-3685.07109622,0.0002,30]
[339862017,1728084646228,-7940.01575339,0.0002,2]
[339862018,1728084646239,-9396.41845028,0.0002,2]
[339862019,1728084705375,234.02291108,0.00010209,2]
[339862020,1728084758021,172.434051,0.00023836,90]
[339862021,1728084758282,172.434051,0.00023836,120]
[339862047,1728085832020,-150.0,0.000179,2]
[339862048,1728085832031,-220.763564,0.0001885,2]
[339862049,1728085832040,-220.763564,0.00018901,2]
[339862051,1728085832051,-167.601338,0.00018904,2]
[339862053,1728085832061,-69.07979059,0.00018953,2]
[339862167,1728085838186,-151.68377341,0.00018953,2]
[339862168,1728085838380,-220.763564,0.00019005,2]
[339862169,1728085838392,-220.763564,0.00019057,2]
[339862170,1728085838403,-220.763564,0.00019108,2]
[339862171,1728085838414,-220.763564,0.0001916,2]
[339862172,1728085838426,-500.0,0.00019178,2]
[339862173,1728085838436,-263.204485,0.00019178,2]
[339862174,1728085838446,-220.763564,0.00019212,2]
[339862175,1728085838456,-220.763564,0.00019263,2]
[339862176,1728085838467,-220.763564,0.00019315,2]
[339862177,1728085838478,-220.763564,0.00019367,2]
[339862178,1728085838487,-153.0,0.000194,2]
[339862179,1728085838497,-152.86828932,0.00019416,2]
[339862180,1728085838508,-220.763564,0.00019418,2]
[339862181,1728085838519,-153.0,0.00019452,2]
[339862182,1728085838529,-153.0,0.00019452,2]
[339862183,1728085838539,-113.56830424,0.00019452,2]
[339862191,1728085840141,-39.43169576,0.00019452,2]
[339862192,1728085840151,-153.0,0.00019452,2]
[339862193,1728085840161,-220.763564,0.0001947,2]
[339862194,1728085840172,-220.763564,0.00019522,2]
[339862195,1728085840183,-298.6723617,0.00019562,2]
[339862196,1728085840194,-220.763564,0.00019574,2]
[339862197,1728085840204,-300.0,0.00019625,2]
[339862198,1728085840214,-220.763564,0.00019625,2]
[339862199,1728085840225,-220.763564,0.00019677,2]
[339862200,1728085840235,-69.26382441,0.00019729,2]
[339862206,1728085843214,-151.49973959,0.00019729,2]
[339862207,1728085843224,-220.763564,0.0001978,2]
[339862208,1728085843235,-220.763564,0.00019832,2]
[339862209,1728085843245,-2520.74557978,0.0001989,2]
[339862211,1728085846240,-250.0,0.0001989,2]
[339862212,1728085846290,-782.54403667,0.0001989,2]
[339862213,1728085846301,-4099.14462066,0.000199,2]
[339862214,1728086091733,172.434051,0.00023836,120]
[339862216,1728086432598,27.15109061,0.00026867,120]
[339862219,1728086791377,150.0,0.00026153,120]
[339862222,1728086855949,56.60846823,0.000253,120]
[339862223,1728086855971,100.39153177,0.000253,120]
[339862224,1728086856205,157.0,0.0002415,120]
[339862225,1728086904079,172.434051,0.00023836,120]
[339862229,1728087030761,1.17441723,0.000242,120]
[339862230,1728087030784,148.82558277,0.000242,120]
[339862260,1728087032245,-150.0,0.000179,2]
[339862263,1728087032257,-1600.9847661,0.00018635,2]
[339862265,1728087032266,-150.0,0.00018904,2]
[339862887,1728087211382,150.0,0.00022625,120]
[339862888,1728087826882,250867.47501159,0.0001,2]
[339862889,1728087826908,36097.98728151,0.0001,2]
[339862894,1728088050952,132.17441723,0.000245,120]
[339862895,1728088050976,17.82558277,0.000245,120]
[339862972,1728088246465,-150.0,0.000179,2]
[339862973,1728088246475,-170.115814,0.00018904,2]
[339862974,1728088246484,-6279.884186,0.00019,2]
[339862976,1728089028677,413.17441723,0.000268,90]
[339863006,1728089432649,-255.19022687,0.00017775,2]
[339863007,1728089432661,-302.2330849,0.00017788,2]
[339863008,1728089432671,-168.818619,0.00018052,2]
[339863009,1728089432680,-150.0,0.000181,2]
[339863010,1728089432692,-168.818619,0.0001824,2]
[339863011,1728089432703,-168.818619,0.00018428,2]
[339863012,1728089432714,-168.818619,0.00018616,2]
[339863014,1728089432725,-168.818619,0.00018804,2]
[339863015,1728089432736,-1218.0,0.00018846,2]
[339863016,1728089432745,-170.115814,0.00018904,2]
[339863017,1728089432755,-153.0,0.00018978,2]
[339863018,1728089432764,-153.0,0.00018978,2]
[339863019,1728089432775,-209.4588924,0.00018978,2]
[339863020,1728089432785,-153.0,0.00018978,2]
[339863021,1728089432795,-3.47238336,0.00018978,2]
[339863022,1728089432807,-149.52761664,0.00018978,2]
[339863023,1728089432818,-153.0,0.00018978,2]
[339863024,1728089432827,-153.0,0.00018978,2]
[339863025,1728089432837,-60.60515046,0.00018992,2]
[339863026,1728089432848,-108.21346854,0.00018992,2]
[339863027,1728089432858,-300.0,0.00018998,2]
[339863028,1728089432868,-138.81814246,0.00018998,2]
[339863029,1728089432880,-161.18185754,0.00018998,2]
[339863030,1728089432890,-151.0,0.00018999,2]
[339863031,1728089432900,-151.0,0.00018999,2]
[339863032,1728089432910,-675.35103147,0.00018999,2]
[339863195,1728089446670,-153.0,0.00018978,2]
[339863196,1728089446680,-6671.68025406,0.00018999,2]
[339863197,1728089446689,-7401.77673329,0.00018999,2]
[339863198,1728089446699,-161.46677488,0.00019,2]
[339863199,1728089446708,-621.49002402,0.00019,2]
[339863200,1728089446718,-153.0,0.00019,2]
[339863201,1728089446728,-153.0,0.00019,2]
[339863202,1728089446738,-166.94621375,0.00019,2]
[339863203,1728089446751,-125.78216455,0.00019,2]
[339863204,1728089446762,-306.0,0.00019,2]
[339863205,1728089446772,-153.0,0.00019,2]
[339863206,1728089446781,-760.3177474,0.00019,2]
[339863207,1728089446790,-153.0,0.00019,2]
[339863208,1728089446801,-500.0,0.00019,2]
[339863209,1728089446811,-153.0,0.00019,2]
[339863210,1728089446822,-151.0,0.00019,2]
[339863211,1728089446831,-269.300908,0.00019,2]
[339863213,1728089446840,-222.772449,0.00019,2]
[339863215,1728089446850,-222.772449,0.00019,2]
[339863216,1728089446860,-222.772449,0.00019,2]
[339863218,1728089446871,-222.772449,0.00019,2]
[339863219,1728089446882,-222.772449,0.00019,2]
[339863220,1728089446892,-222.772449,0.00019,2]
[339863221,1728089446903,-3109.12841442,0.00019,2]
[339863222,1728089446915,-1862.031248,0.00019,2]
[339863223,1728089446924,-1721.64766989,0.00019,2]
[339863225,1728089870933,200.0,0.00023,120]
[339863349,1728090637833,-166.599943,0.00018382,2]
[339863351,1728090637844,-150.0,0.000188,2]
[339863352,1728090637854,-217.860057,0.0001888,2]
[339863368,1728090639849,-1479.9900254,0.0001888,2]
[339863380,1728090643067,-640.9348181,0.0001888,2]
[339863389,1728090645927,-381.7024621,0.0001888,2]
[339863390,1728090645937,-300.0,0.00018899,2]
[339863391,1728090645949,-3902.70841581,0.000189,2]
[339863392,1728090645958,-161.46677488,0.000189,2]
[339863393,1728090645968,-36733.6933826,0.000189,2]
[339863394,1728090645978,-170.115814,0.00018904,2]
[339863395,1728090645988,-360.17470931,0.00018973,2]
[339863396,1728090646184,-225.0260628,0.00018973,2]
[339863397,1728090646193,-500.0,0.00018973,2]
[339863398,1728090646203,-519.3136973,0.00018973,2]
[339863399,1728090646212,-572.07507554,0.00018973,2]
[339863400,1728090646223,-500.0,0.00018973,2]
[339863401,1728090646234,-500.0,0.00018973,2]
[339863402,1728090646244,-488.18091068,0.00018973,2]
[339863403,1728090646253,-500.0,0.00018973,2]
[339863404,1728090646263,-500.0,0.00018973,2]
[339863405,1728090646274,-500.0,0.00018973,2]
[339863406,1728090646285,-151.0,0.00018973,2]
[339863407,1728090646295,-151.0,0.00018973,2]
[339863408,1728090646305,-278.2328695,0.00018979,2]
[339863409,1728090646314,-4525.88031599,0.0001898,2]
[339863410,1728090646323,-151.0,0.0001898,2]
[339863411,1728090646334,-397.234489,0.0001898,2]
[339863412,1728090646344,-397.234489,0.0001898,2]
[339863413,1728090646353,-151.0,0.0001898,2]
[339863414,1728090646362,-455.989927,0.0001898,2]
[339863415,1728090646372,-455.989927,0.0001898,2]
[339863416,1728090646381,-151.0,0.0001898,2]
[339863417,1728090646390,-151.0,0.0001898,2]
[339863418,1728090646399,-151.0,0.0001898,2]